[Event "FISU World University-ch 2020-KO"]
[Site "Online"]
[Date "2020.10.26"]
[Round "1"]
[White "Makhnev, Denis"]
[Black "Bilguun, Sumiya"]
[Result "1-0"]
[ECO "E05"]
[WhiteElo "2486"]
[BlackElo "2454"]
[Annotator "RC"]
[PlyCount "105"]
[EventDate "2020.10.26"]
[EventType "team-tourn"]
[SourceTitle "playchess.com"]
[Source "ChessBase"]
[SourceQuality "1"]
[TimeControl "900+10"]

1. Nf3 {[%emt 0:00:00]} d5 {[%emt 0:00:04]} 2. g3 {[%emt 0:00:02]} e6 {[%emt 0:00:03]} 3. Bg2 {[%emt 0:00:03]} Nf6 {[%emt 0:00:02]} 4. d4 {[%emt 0:00:13]} Be7 {[%emt 0:00:03]} 5. O-O {[%emt 0:00:02]} O-O {[%emt 0:00:30]} 6. c4 {[%emt 0:00:02]} dxc4 {[%emt 0:00:10]} 7. Qc2 {[%emt 0:00:02]} a6 {[%emt 0:00:04]} 8. a4 {[%emt 0:00:02]} Bd7 {[%emt 0:00:04]} 9. Qxc4 {[%emt 0:00:02]} Bc6 {[%emt 0:00:04]} 10. Bf4 {[%emt 0:00:02]} a5 {[%emt 0:00:07]} 11. Nc3 {[%emt 0:00:03]} Na6 {[%emt 0:00:07]} 12. Rac1 {[%emt 0:00:48]} Bxf3 {[%emt 0:01:05]} 13. Bxf3 {[%emt 0:00:06]} c6 {[%emt 0:00:04]} 14. Qb3 {[%emt 0:01:02]} Nb4 {[%emt 0:00:04]} 15. Rfd1 {[%emt 0:00:03]} Qb6 {[%emt 0:02:33]} 16. e4 {[%emt 0:01:26]} Rfd8 {[%emt 0:01:05]} 17. Be3 {[%emt 0:01:24]} Nbd5 {[%emt 0:02:29]} 18. Qxb6 {[%emt 0:00:04]} Nxb6 {[%emt 0:00:03]} 19. b3 {[%emt 0:00:02]} Ba3 {[%emt 0:01:13]} 20. Rc2 {[%emt 0:00:04]} Nbd7 {[%emt 0:00:36]} 21. Nb1 {[%emt 0:02:33]} Bb4 {[%emt 0:00:25]} 22. Nd2 {[%emt 0:00:03]} Ne8 {[%emt 0:03:30]} 23. Nc4 {[%emt 0:02:31]} Nd6 {[%emt 0:00:22]} 24. Nxd6 {[%emt 0:00:14]} Bxd6 {[%emt 0:00:03]} 25. d5 {[%emt 0:00:01]} exd5 {[%emt 0:00:51]} 26. exd5 {[%emt 0:00:04]} c5 {[%emt 0:00:01]} 27. Be2 {[%emt 0:01:05]} h6 {[%emt 0:00:10]} 28. Bb5 {[%emt 0:00:10]} Rac8 {[%emt 0:02:31]} 29. Bd2 {[%emt 0:00:36]} Ra8 {[%emt 0:00:04]} 30. Bc3 {[%emt 0:00:53]} Nf6 {[%emt 0:00:12]} 31. Re2 {[%emt 0:00:51]} Bf8 {[%emt 0:00:31]} 32. Bxf6 {[%emt 0:01:07]} gxf6 {[%emt 0:00:04]} 33. Kg2 {[%emt 0:00:01]} Bd6 {[%emt 0:00:16]} 34. f4 {[%emt 0:00:12]} Kg7 {[%emt 0:00:25]} 35. Kf3 {[%emt 0:00:09]} f5 {[%emt 0:00:03]} 36. Bd3 {[%emt 0:01:15]} Kf6 {[%emt 0:00:03]} 37. Rde1 {[%emt 0:00:01]} Rab8 {[%emt 0:00:41]} 38. h4 {[%emt 0:00:51]} Ra8 {[%emt 0:00:14]} 39. Re5 {[%emt 0:00:15]} Bxe5 {[%emt 0:00:03]} 40. fxe5+ {[%emt 0:00:01]} Kg7 {[%emt 0:00:09]} 41. d6 {[%emt 0:00:24]} f6 {[%emt 0:00:16]} 42. e6 {[%emt 0:00:01]} Rxd6 {[%emt 0:00:13]} 43. Bb5 {[%emt 0:00:02]} Rb6 {[%emt 0:00:15]} 44. Kf4 {[%emt 0:00:35]} Rxb5 {[%emt 0:00:10]} 45. axb5 {[%emt 0:00:02]} Kf8 {[%emt 0:00:01]} 46. Kxf5 {[%emt 0:00:55]} Ke7 {[%emt 0:00:19]} 47. Rd1 {[%emt 0:00:02]} Rd8 {[%emt 0:00:10]} 48. Rxd8 {[%emt 0:00:01]} Kxd8 {[%emt 0:00:02]} 49. Kxf6 {[%emt 0:00:01]} Ke8 {[%emt 0:00:03]} 50. g4 {[%emt 0:01:00]} c4 {[%emt 0:00:03]} 51. g5 {[%emt 0:00:03]} hxg5 {[%emt 0:00:03]} 52. hxg5 {[%emt 0:00:13]} cxb3 {[%emt 0:00:11]} 53. g6 {[%emt 0:00:01]} 1-0

[Event "FISU World University-ch 2020-KO"]
[Site "Online"]
[Date "2020.10.26"]
[Round "2"]
[White "Makhnev, Denis"]
[Black "Zarubitski, Viachaslau"]
[Result "1/2-1/2"]
[ECO "A07"]
[WhiteElo "2486"]
[BlackElo "2442"]
[Annotator "RC"]
[PlyCount "100"]
[EventDate "2020.10.26"]
[EventType "team-tourn"]
[SourceTitle "playchess.com"]
[Source "ChessBase"]
[SourceQuality "1"]
[TimeControl "900+10"]

1. Nf3 {[%emt 0:00:00]} d5 {[%emt 0:00:05]} 2. g3 {[%emt 0:00:02]} c6 {[%emt 0:00:03]} 3. Bg2 {[%emt 0:00:02]} Nf6 {[%emt 0:00:02]} 4. O-O {[%emt 0:00:04]} Bf5 {[%emt 0:00:04]} 5. d3 {[%emt 0:00:10]} h6 {[%emt 0:00:17]} 6. c4 {[%emt 0:00:07]} dxc4 {[%emt 0:00:29]} 7. dxc4 {[%emt 0:00:04]} Nbd7 {[%emt 0:00:11]} 8. Qb3 {[%emt 0:03:30]} Nc5 {[%emt 0:02:25]} 9. Qe3 {[%emt 0:00:03]} e6 {[%emt 0:00:53]} 10. Nc3 {[%emt 0:07:14]} Be7 {[%emt 0:00:47]} 11. Rd1 {[%emt 0:00:16]} Qb6 {[%emt 0:00:28]} 12. Ne5 {[%emt 0:00:46]} O-O {[%emt 0:00:39]} 13. b3 {[%emt 0:00:12]} a5 {[%emt 0:01:05]} 14. Ba3 {[%emt 0:00:18]} Rfe8 {[%emt 0:00:49]} 15. h3 {[%emt 0:00:35]} Na4 {[%emt 0:03:40]} 16. Qxb6 {[%emt 0:00:56]} Nxb6 {[%emt 0:00:02]} 17. Bxe7 {[%emt 0:00:47]} Rxe7 {[%emt 0:00:02]} 18. e4 {[%emt 0:00:45]} Bh7 {[%emt 0:00:08]} 19. f4 {[%emt 0:00:37]} Nfd7 {[%emt 0:03:32]} 20. Nd3 {[%emt 0:00:05]} Rae8 {[%emt 0:01:00]} 21. c5 {[%emt 0:00:13]} Na8 {[%emt 0:00:21]} 22. Kf2 {[%emt 0:00:17]} Nc7 {[%emt 0:00:16]} 23. Rd2 {[%emt 0:00:14]} Na6 {[%emt 0:00:44]} 24. Na4 {[%emt 0:00:01]} e5 {[%emt 0:00:01]} 25. f5 {[%emt 0:00:04]} Bxf5 {[%emt 0:00:02]} 26. exf5 {[%emt 0:00:53]} e4 {[%emt 0:00:02]} 27. Bxe4 {[%emt 0:00:06]} Rxe4 {[%emt 0:00:02]} 28. Rad1 {[%emt 0:00:09]} Nf6 {[%emt 0:00:25]} 29. g4 {[%emt 0:00:33]} Nd5 {[%emt 0:00:32]} 30. Re1 {[%emt 0:00:18]} Nab4 {[%emt 0:00:34]} 31. Rxe4 {[%emt 0:00:12]} Rxe4 {[%emt 0:00:17]} 32. Nxb4 {[%emt 0:00:02]} Rxb4 {[%emt 0:00:08]} 33. Nb2 {[%emt 0:00:23]} h5 {[%emt 0:00:05]} 34. Kg3 {[%emt 0:00:14]} hxg4 {[%emt 0:00:07]} 35. hxg4 {[%emt 0:00:01]} f6 {[%emt 0:00:01]} 36. Rd3 {[%emt 0:00:11]} g6 {[%emt 0:00:25]} 37. fxg6 {[%emt 0:00:23]} Kg7 {[%emt 0:00:02]} 38. Nc4 {[%emt 0:00:07]} a4 {[%emt 0:00:04]} 39. Nd6 {[%emt 0:00:01]} Kxg6 {[%emt 0:00:22]} 40. bxa4 {[%emt 0:00:10]} Rxa4 {[%emt 0:00:03]} 41. a3 {[%emt 0:00:01]} Ra5 {[%emt 0:00:18]} 42. Nxb7 {[%emt 0:00:23]} Rb5 {[%emt 0:00:02]} 43. Nd8 {[%emt 0:00:07]} Rxc5 {[%emt 0:00:04]} 44. a4 {[%emt 0:00:04]} Nb6 {[%emt 0:00:19]} 45. Ne6 {[%emt 0:00:17]} Ra5 {[%emt 0:00:11]} 46. Rb3 {[%emt 0:00:01]} Nd5 {[%emt 0:00:16]} 47. Rb7 {[%emt 0:00:05]} f5 {[%emt 0:00:12]} 48. gxf5+ {[%emt 0:00:44]} Kxf5 {[%emt 0:00:02]} 49. Nd4+ {[%emt 0:00:02]} Kf6 {[%emt 0:00:15]} 50. Nxc6 {[%emt 0:00:09]} Rxa4 {[%emt 0:00:03]} 1/2-1/2